fUST/lending_fUST_20240711
["ID","MTS","AMOUNT","RATE_DAILY","PERIOD"]
[331682212,1720633841600,-10162.39,0.00032876,7]
[331682213,1720633841609,-509.80991663,0.00032876,7]
[331682214,1720633841618,-223.40288364,0.00032876,7]
[331682215,1720633841627,-500.0,0.00032876,7]
[331682216,1720633841636,-679.38,0.00032876,7]
[331682217,1720633841647,-762.95,0.00032876,7]
[331682218,1720633841655,-500.0,0.00032876,7]
[331682219,1720633841664,-500.0,0.00032876,7]
[331682220,1720633841673,-500.0,0.00032876,5]
[331682221,1720633841682,-500.0,0.00032876,5]
[331682222,1720633841691,-500.0,0.00032876,5]
[331682223,1720633841700,-500.0,0.00032876,5]
[331682224,1720633841710,-500.0,0.00032876,5]
[331682225,1720633841718,-524.63147779,0.00032876,7]
[331682226,1720633841727,-521.77382738,0.00032876,7]
[331682227,1720633841736,-500.0,0.00032876,5]
[331682228,1720633841745,-500.0,0.00032876,5]
[331682229,1720633841755,-500.0,0.00032876,5]
[331682230,1720633841766,-500.0,0.00032876,5]
[331682231,1720633841776,-500.0,0.00032876,5]
[331682232,1720633841787,-500.0,0.00032876,5]
[331682233,1720633841796,-507.54966602,0.00032876,7]
[331682234,1720633841806,-356.6196711,0.00032876,5]
[331682235,1720633841816,-500.0,0.00032876,7]
[331682236,1720633841825,-500.0,0.00032876,7]
[331682237,1720633841837,-500.0,0.00032876,7]
[331682238,1720633841847,-500.0,0.00032876,2]
[331682239,1720633841856,-1529.21,0.00032876,7]
[331682240,1720633841865,-1529.21,0.00032876,7]
[331682241,1720633841874,-1529.21,0.00032876,7]
[331682242,1720633841882,-500.0,0.00032876,2]
[331682243,1720633841891,-1529.21,0.00032876,7]
[331682244,1720633841901,-703.62,0.00032876,7]
[331682245,1720633841910,-1529.21,0.00032876,7]
[331682246,1720633841919,-1529.21,0.00032876,7]
[331682247,1720633841929,-1529.21,0.00032876,7]
[331682248,1720633841939,-500.0,0.00032876,7]
[331682249,1720633841949,-1529.21,0.00032876,7]
[331682250,1720633841961,-1529.21,0.00032876,7]
[331682251,1720633841970,-1529.21,0.00032876,7]
[331682252,1720633841979,-1529.21,0.00032876,7]
[331682253,1720633841988,-1529.21,0.00032876,7]
[331682254,1720633841997,-1529.21,0.00032876,7]
[331682255,1720633842006,-1529.21,0.00032876,7]
[331682256,1720633842015,-1529.21,0.00032876,7]
[331682257,1720633842025,-1529.21,0.00032876,7]
[331682258,1720633842035,-1529.21,0.00032876,7]
[331682259,1720633842045,-524.54736697,0.00032876,7]
[331682260,1720633842054,-500.0,0.00032876,2]
[331682261,1720633842063,-511.08383652,0.00032876,7]
[331682262,1720633842073,-500.0,0.00032876,7]
[331682263,1720633842082,-500.0,0.00032876,7]
[331682264,1720633842091,-500.0,0.00032876,7]
[331682265,1720633842100,-500.0,0.00032876,7]
[331682266,1720633842109,-500.0,0.00032876,7]
[331682267,1720633842118,-500.0,0.00032876,7]
[331682268,1720633842128,-500.0,0.00032876,2]
[331682269,1720633842137,-500.0,0.00032876,7]
[331682270,1720633842145,-500.0,0.00032876,7]
[331682271,1720633842154,-500.0,0.00032876,7]
[331682272,1720633842164,-500.0,0.00032876,7]
[331682273,1720633842173,-500.0,0.00032876,7]
[331682274,1720633842182,-500.0,0.00032876,7]
[331682275,1720633842192,-500.0,0.00032876,7]
[331682276,1720633842201,-500.0,0.00032876,7]
[331682277,1720633842210,-482.10978468,0.00032876,7]
[331682278,1720633842219,-153.0,0.00032876,2]
[331682279,1720633842228,-372.87948702,0.00032876,7]
[331682280,1720633842323,-335.99138401,0.00032876,7]
[331682281,1720633842333,-160.0,0.00032882,3]
[331682282,1720633842343,-150.0,0.0003296,2]
[331682283,1720633842352,-373.0,0.000331,6]
[331682284,1720633842361,-150.0,0.000331,2]
[331682285,1720633842370,-1003.764437,0.000331,11]
[331682286,1720633842378,-359.964,0.00033149,7]
[331682287,1720633842387,-162.200509,0.00033149,7]
[331682288,1720633842396,-359.964,0.00033149,7]
[331682289,1720633842405,-162.200509,0.00033149,7]
[331682290,1720633842414,-2637.16,0.00033149,2]
[331682291,1720633842423,-2637.16,0.00033149,2]
[331682292,1720633842432,-2637.16,0.00033149,2]
[331682293,1720633842441,-2637.16,0.00033149,2]
[331682294,1720633842451,-2637.30481392,0.00033149,2]
[331682295,1720633842461,-537.030619,0.00033149,7]
[331682296,1720633842471,-537.030619,0.00033149,7]
[331682297,1720633842480,-151.0,0.00033149,7]
[331682298,1720633842489,-728.025463,0.00033149,7]
[331682299,1720633842498,-728.025463,0.00033149,7]
[331682300,1720633842507,-1529.21,0.00033149,7]
[331682301,1720633842516,-1529.21,0.00033149,7]
[331682302,1720633842525,-1529.21,0.00033149,7]
[331682303,1720633842534,-1529.21,0.00033149,7]
[331682304,1720633842543,-1529.21,0.00033149,7]
[331682305,1720633842553,-1529.21,0.00033149,7]
[331682306,1720633842562,-1529.3730572,0.00033149,7]
[331682307,1720633842571,-7338.10352935,0.0003315,5]
[331682308,1720633842580,-500.0,0.0003315,7]
[331682309,1720633842589,-500.0,0.0003315,7]
[331682310,1720633842598,-500.0,0.0003315,7]
[331682311,1720633842607,-500.0,0.0003315,7]
[331682312,1720633842617,-500.0,0.0003315,7]
[331682313,1720633842626,-613.82163791,0.0003315,7]
[331682314,1720633842635,-658.63,0.0003315,7]
[331682315,1720633842644,-485.08218269,0.0003315,7]
[331682316,1720633842653,-500.0,0.0003315,7]
[331682317,1720633842663,-536.6132868,0.0003315,7]
[331682318,1720633842672,-500.0,0.0003315,7]
[331682319,1720633842681,-500.0,0.0003315,2]
[331682320,1720633842691,-500.0,0.0003315,2]
[331682321,1720633842700,-588.56,0.0003315,7]
[331682322,1720633842710,-500.0,0.0003315,7]
[331682323,1720633842720,-321.91113139,0.0003315,7]
[331682324,1720633842729,-500.0,0.0003315,7]
[331682325,1720633842738,-151.0,0.0003315,7]
[331682326,1720633842747,-1924.61,0.0003315,4]
[331682327,1720633842756,-500.0,0.0003315,7]
[331682328,1720633842765,-346.788723,0.0003315,7]
[331682329,1720633842774,-346.788723,0.0003315,7]
[331682330,1720633842783,-500.0,0.0003315,7]
[331682331,1720633842792,-151.0,0.0003315,7]
[331682332,1720633842801,-486.30993831,0.0003315,7]
[331682333,1720633842809,-500.0,0.0003315,7]
[331682335,1720633842818,-500.0,0.0003315,7]
[331682337,1720633842827,-500.0,0.0003315,7]
[331682338,1720633842837,-519.63507875,0.0003315,7]
[331682339,1720633842846,-500.0,0.0003315,7]
[331682340,1720633842855,-243.73,0.0003315,7]
[331682342,1720633842864,-500.0,0.0003315,7]
[331682344,1720633842874,-500.0,0.0003315,7]
[331682346,1720633842883,-500.0,0.0003315,7]
[331682348,1720633842892,-151.0,0.0003315,7]
[331682350,1720633842902,-500.0,0.0003315,7]
[331682352,1720633842911,-151.0,0.0003315,7]
[331682354,1720633842920,-1226.35,0.0003315,7]
[331682355,1720633842930,-500.0,0.0003315,7]
[331682357,1720633842939,-2167.79,0.0003315,7]
[331682358,1720633842949,-500.0,0.0003315,7]
[331682359,1720633842958,-151.0,0.0003315,7]
[331682360,1720633842967,-5532.44,0.0003315,7]
[331682361,1720633842976,-655.65,0.0003315,7]
[331682362,1720633842986,-500.0,0.0003315,7]
[331682363,1720633842995,-500.0,0.0003315,7]
[331682364,1720633843004,-500.0,0.0003315,7]
[331682365,1720633843013,-500.0,0.0003315,7]
[331682366,1720633843023,-195.66556059,0.0003315,7]
[331682367,1720633843036,-650.4,0.0003315,7]
[331682368,1720633843048,-507.65491203,0.0003315,7]
[331682369,1720633843058,-500.0,0.0003315,7]
[331682370,1720633843066,-500.0,0.0003315,7]
[331682371,1720633843074,-500.0,0.0003315,2]
[331682372,1720633843083,-514.53,0.0003315,7]
[331682373,1720633843092,-1240.52,0.0003315,7]
[331682374,1720633843100,-500.0,0.0003315,7]
[331682375,1720633843109,-815.68,0.0003315,7]
[331682376,1720633843118,-500.0,0.0003315,7]
[331682377,1720633843127,-500.0,0.0003315,7]
[331682378,1720633843136,-789.03,0.0003315,7]
[331682379,1720633843145,-500.0,0.0003315,7]
[331682380,1720633843154,-500.0,0.0003315,7]
[331682381,1720633843163,-500.0,0.0003315,7]
[331682382,1720633843173,-973.91,0.0003315,7]
[331682383,1720633843182,-544.72617333,0.0003315,7]
[331682384,1720633843191,-624.6173988,0.0003315,7]
[331682385,1720633843200,-500.0,0.0003315,7]
[331682386,1720633843209,-500.0,0.0003315,7]
[331682387,1720633843218,-151.0,0.0003315,7]
[331682388,1720633843227,-500.0,0.0003315,7]
[331682389,1720633843236,-151.0,0.0003315,7]
[331682390,1720633843245,-500.0,0.0003315,7]
[331682391,1720633843254,-500.0,0.0003315,7]
[331682392,1720633843263,-151.438995,0.0003315,7]
[331682393,1720633843272,-500.0,0.0003315,7]
[331682394,1720633843281,-500.0,0.0003315,7]
[331682395,1720633843290,-500.0,0.0003315,7]
[331682396,1720633843300,-500.0,0.0003315,7]
[331682397,1720633843308,-151.0,0.0003315,2]
[331682398,1720633843321,-500.0,0.0003315,7]
[331682399,1720633843331,-500.0,0.0003315,7]
[331682400,1720633843340,-500.0,0.0003315,7]
[331682401,1720633843349,-500.0,0.0003315,7]
[331682402,1720633843359,-1939.924213,0.0003315,7]
[331682403,1720633843368,-1939.924213,0.0003315,7]
[331682404,1720633843378,-500.0,0.0003315,7]
[331682405,1720633843386,-512.66982957,0.0003315,7]
[331682407,1720633843396,-349.19433368,0.0003315,7]
[331682408,1720633843405,-1146.61,0.0003315,7]
[331682410,1720633843414,-151.0,0.0003315,7]
[331682411,1720633843423,-500.0,0.0003315,7]
[331682412,1720633843432,-151.0,0.0003315,7]
[331682413,1720633843441,-151.0,0.0003315,7]
[331682414,1720633843451,-545.1273048,0.0003315,7]
[331682415,1720633843461,-500.0,0.0003315,7]
[331682416,1720633843470,-2546.36483,0.0003315,7]
[331682417,1720633843479,-500.0,0.0003315,7]
[331682418,1720633843488,-500.0,0.0003315,7]
[331682419,1720633843497,-500.0,0.0003315,7]
[331682420,1720633843507,-4004.03,0.0003315,7]
[331682421,1720633843516,-500.0,0.0003315,7]
[331682422,1720633843525,-2146.61,0.0003315,7]
[331682423,1720633843535,-216.188521,0.0003315,7]
[331682424,1720633843544,-500.0,0.0003315,7]
[331682425,1720633843553,-216.188521,0.0003315,7]
[331682426,1720633843563,-500.0,0.0003315,7]
[331682427,1720633843573,-655.71,0.0003315,7]
[331682428,1720633843582,-500.0,0.0003315,7]
[331682429,1720633843591,-500.0,0.0003315,7]
[331682430,1720633843600,-500.0,0.0003315,7]
[331682431,1720633843609,-500.0,0.0003315,7]
[331682432,1720633843618,-500.0,0.0003315,7]
[331682433,1720633843627,-524.97035938,0.0003315,7]
[331682434,1720633843636,-500.0,0.0003315,7]
[331682435,1720633843645,-500.0,0.0003315,7]
[331682436,1720633843654,-868.94,0.0003315,7]
[331682437,1720633843663,-500.0,0.0003315,7]
[331682438,1720633843672,-500.0,0.0003315,7]
[331682439,1720633843681,-1045.58,0.0003315,7]
[331682440,1720633843690,-500.0,0.0003315,7]
[331682441,1720633843700,-500.0,0.0003315,7]
[331682442,1720633843709,-1500.0,0.0003315,7]
[331682443,1720633843718,-500.0,0.0003315,7]
[331682444,1720633843727,-916.0,0.0003315,7]
[331682445,1720633843736,-647.46968399,0.0003315,7]
[331682446,1720633843745,-411.77203336,0.0003315,7]
[331682447,1720633843755,-1573.3,0.0003315,7]
[331682448,1720633843764,-159.149849,0.0003315,7]
[331682449,1720633843774,-500.0,0.0003315,7]
[331682450,1720633843784,-307.06316627,0.0003315,7]
[331682451,1720633843793,-500.0,0.0003315,7]
[331682452,1720633843803,-1940.97,0.0003315,7]
[331682453,1720633843813,-151.0,0.0003315,7]
[331682454,1720633843823,-779.68,0.0003315,7]
[331682455,1720633843832,-911.3,0.0003315,7]
[331682456,1720633843841,-3472.78,0.0003315,7]
[331682457,1720633843851,-570.515603,0.0003315,7]
[331682458,1720633843860,-500.0,0.0003315,7]
[331682459,1720633843869,-789.14,0.0003315,7]
[331682460,1720633843878,-500.0,0.0003315,7]
[331682461,1720633843887,-570.515603,0.0003315,7]
[331682462,1720633843896,-602.28,0.0003315,7]
[331682463,1720633843906,-500.0,0.0003315,7]
[331682464,1720633843914,-1234.5,0.0003315,7]
[331682465,1720633843923,-641.75,0.0003315,7]
[331682466,1720633843932,-10162.39,0.0003315,7]
[331682467,1720633843942,-500.0,0.0003315,7]
[331682468,1720633843951,-151.0,0.0003315,7]
[331682469,1720633843960,-845.922322,0.0003315,7]
[331682470,1720633843969,-475.14948919,0.0003315,7]
[331682471,1720633843978,-679.38,0.0003315,7]
[331682472,1720633843988,-762.95,0.0003315,7]
[331682473,1720633843997,-500.0,0.0003315,7]
[331682474,1720633844007,-500.0,0.0003315,7]
[331682475,1720633844016,-845.922322,0.0003315,7]
[331682476,1720633844026,-500.0,0.0003315,7]
[331682477,1720633844035,-500.0,0.0003315,7]
[331682478,1720633844045,-151.0,0.0003315,7]
[331682479,1720633844055,-151.0,0.0003315,7]
[331682480,1720633844064,-500.0,0.0003315,2]
[331682481,1720633844072,-703.62,0.0003315,7]
[331682482,1720633844082,-195.753788,0.0003315,7]
[331682483,1720633844091,-500.0,0.0003315,2]
[331682484,1720633844100,-500.0,0.0003315,7]
[331682485,1720633844109,-195.753788,0.0003315,7]
[331682486,1720633844118,-500.0,0.0003315,7]
[331682487,1720633844128,-500.0,0.0003315,7]
[331682488,1720633844137,-150.0,0.00033162,4]
[331682489,1720633844147,-231.718866,0.00033295,2]
[331682490,1720633844156,-500.0,0.00033424,7]
[331682491,1720633844165,-500.0,0.00033424,7]
[331682492,1720633844174,-151.0,0.00033424,7]
[331682493,1720633844183,-500.0,0.00033424,7]
[331682494,1720633844192,-164.114838,0.00033424,7]
[331682495,1720633844201,-164.114838,0.00033424,7]
[331682496,1720633844210,-500.0,0.00033424,7]
[331682497,1720633844219,-500.0,0.00033424,7]
[331682498,1720633844228,-658.63,0.00033424,7]
[331682499,1720633844237,-151.0,0.00033424,7]
[331682500,1720633844247,-500.0,0.00033424,7]
[331682501,1720633844256,-553.60874357,0.00033424,7]
[331682502,1720633844265,-500.0,0.00033424,2]
[331682503,1720633844274,-500.0,0.00033424,2]
[331682504,1720633844283,-588.56,0.00033424,7]
[331682505,1720633844376,-500.0,0.00033424,7]
[331682506,1720633844385,-500.0,0.00033424,7]
[331682507,1720633844394,-1924.61,0.00033424,4]
[331682508,1720633844405,-525.52187844,0.00033424,7]
[331682509,1720633844414,-500.0,0.00033424,7]
[331682510,1720633844423,-500.0,0.00033424,7]
[331682511,1720633844433,-500.0,0.00033424,7]
[331682513,1720633844442,-522.47918448,0.00033424,7]
[331682515,1720633844451,-500.0,0.00033424,7]
[331682517,1720633844461,-500.0,0.00033424,7]
[331682519,1720633844470,-500.0,0.00033424,7]
[331682521,1720633844479,-500.0,0.00033424,7]
[331682523,1720633844488,-500.0,0.00033424,7]
[331682524,1720633844497,-1226.35,0.00033424,7]
[331682526,1720633844506,-157.83506182,0.00033424,7]
[331682527,1720633844515,-2167.79,0.00033424,7]
[331682528,1720633844524,-182.74058783,0.00033424,7]
[331682529,1720633844533,-5532.44,0.00033424,7]
[331682530,1720633844542,-655.65,0.00033424,7]
[331682531,1720633844552,-541.26377703,0.00033424,7]
[331682532,1720633844561,-500.0,0.00033424,7]
[331682533,1720633844570,-500.0,0.00033424,7]
[331682534,1720633844578,-500.0,0.00033424,7]
[331682535,1720633844588,-650.4,0.00033424,7]
[331682536,1720633844597,-500.0,0.00033424,7]
[331682537,1720633844606,-500.0,0.00033424,7]
[331682538,1720633844616,-500.0,0.00033424,2]
[331682539,1720633844625,-514.53,0.00033424,7]
[331682540,1720633844634,-1240.52,0.00033424,7]
[331682541,1720633844643,-500.0,0.00033424,7]
[331682542,1720633844654,-815.68,0.00033424,7]
[331682543,1720633844663,-500.0,0.00033424,7]
[331682544,1720633844672,-500.0,0.00033424,7]
[331682545,1720633844680,-789.03,0.00033424,7]
[331682546,1720633844689,-500.0,0.00033424,7]
[331682547,1720633844698,-500.0,0.00033424,7]
[331682548,1720633844707,-500.0,0.00033424,7]
[331682549,1720633844716,-973.91,0.00033424,7]
[331682550,1720633844725,-500.0,0.00033424,7]
[331682551,1720633844734,-500.0,0.00033424,7]
[331682552,1720633844743,-151.0,0.00033424,7]
[331682553,1720633844752,-500.0,0.00033424,7]
[331682554,1720633844761,-151.0,0.00033424,7]
[331682555,1720633844772,-214.75626966,0.00033424,7]
[331682556,1720633844782,-500.0,0.00033424,7]
[331682557,1720633844791,-500.0,0.00033424,7]
[331682558,1720633844800,-500.0,0.00033424,7]
[331682559,1720633844809,-500.0,0.00033424,7]
[331682560,1720633844818,-500.0,0.00033424,7]
[331682561,1720633844827,-151.0,0.00033424,2]
[331682562,1720633844836,-534.34713418,0.00033424,7]
[331682563,1720633844845,-500.0,0.00033424,7]
[331682564,1720633844854,-500.0,0.00033424,7]
[331682565,1720633844864,-500.0,0.00033424,7]
[331682566,1720633844873,-1939.924213,0.00033424,7]
[331682567,1720633844882,-1939.924213,0.00033424,7]
[331682568,1720633844891,-500.0,0.00033424,7]
[331682569,1720633844901,-1146.61,0.00033424,7]
[331682570,1720633844910,-151.0,0.00033424,7]
[331682571,1720633844920,-500.0,0.00033424,7]
[331682572,1720633844929,-151.0,0.00033424,7]
[331682573,1720633844942,-151.0,0.00033424,7]
[331682574,1720633844952,-500.0,0.00033424,7]
[331682575,1720633844962,-2546.36483,0.00033424,7]
[331682576,1720633844971,-500.0,0.00033424,7]
[331682577,1720633844980,-500.0,0.00033424,7]
[331682578,1720633844989,-500.0,0.00033424,7]
[331682579,1720633844998,-4004.03,0.00033424,7]
[331682580,1720633845007,-500.0,0.00033424,7]
[331682581,1720633845017,-2146.61,0.00033424,7]
[331682582,1720633845026,-216.188521,0.00033424,7]
[331682583,1720633845036,-500.0,0.00033424,7]
[331682584,1720633845046,-216.188521,0.00033424,7]
[331682585,1720633845055,-359.964,0.00033424,7]
[331682586,1720633845064,-423.54628194,0.00033424,7]
[331682587,1720633845073,-162.200509,0.00033424,7]
[331682588,1720633845083,-655.71,0.00033424,7]
[331682589,1720633845096,-233.31911152,0.00033424,7]
[331682590,1720633845106,-359.964,0.00033424,7]
[331682591,1720633845115,-500.0,0.00033424,7]
[331682592,1720633845124,-162.200509,0.00033424,7]
[331682593,1720633845135,-500.0,0.00033424,7]
[331682594,1720633845145,-500.0,0.00033424,7]
[331682595,1720633845156,-500.0,0.00033424,7]
[331682596,1720633845165,-537.030619,0.00033424,7]
[331682597,1720633845174,-537.030619,0.00033424,7]
[331682598,1720633845183,-500.0,0.00033424,7]
[331682599,1720633845192,-151.0,0.00033424,7]
[331682600,1720633845202,-500.0,0.00033424,7]
[331682601,1720633845211,-868.94,0.00033424,7]
[331682602,1720633845220,-500.0,0.00033424,7]
[331682603,1720633845228,-500.0,0.00033424,7]
[331682604,1720633845237,-1045.58,0.00033424,7]
[331682605,1720633845246,-500.0,0.00033424,7]
[331682606,1720633845255,-500.0,0.00033424,7]
[331682607,1720633845265,-728.025463,0.00033424,7]
[331682608,1720633845274,-1500.0,0.00033424,7]
[331682609,1720633845283,-728.025463,0.00033424,7]
[331682610,1720633845292,-500.0,0.00033424,7]
[331682611,1720633845300,-916.0,0.00033424,7]
[331682612,1720633845309,-1573.3,0.00033424,7]
[331682613,1720633845318,-548.91075678,0.00033424,7]
[331682614,1720633845327,-500.0,0.00033424,7]
[331682615,1720633845336,-1940.97,0.00033424,7]
[331682616,1720633845345,-779.68,0.00033424,7]
[331682617,1720633845354,-911.3,0.00033424,7]
[331682618,1720633845363,-3472.78,0.00033424,7]
[331682619,1720633845371,-500.0,0.00033424,7]
[331682620,1720633845380,-789.14,0.00033424,7]
[331682621,1720633845389,-500.0,0.00033424,7]
[331682622,1720633845398,-602.28,0.00033424,7]
[331682623,1720633845409,-529.86589719,0.00033424,7]
[331682624,1720633845419,-1234.5,0.00033424,7]
[331682625,1720633845428,-641.75,0.00033424,7]
[331682626,1720633845439,-10162.39,0.00033424,7]
[331682627,1720633845450,-500.0006609,0.00033424,7]
[331682628,1720633845459,-762.95,0.00033424,7]
[331682629,1720633845470,-679.38,0.00033424,7]
[331682630,1720633845479,-500.0,0.00033424,7]
[331682631,1720633845488,-500.0,0.00033424,7]
[331682632,1720633845497,-502.73946256,0.00033424,7]
[331682633,1720633845506,-500.0,0.00033424,7]
[331682634,1720633845516,-500.0,0.00033424,2]
[331682635,1720633845526,-703.62,0.00033424,7]
[331682636,1720633845536,-500.0,0.00033424,2]
[331682637,1720633845545,-500.0,0.00033424,7]
[331682638,1720633845555,-500.0,0.00033424,7]
[331682639,1720633845564,-500.0,0.00033424,7]
[331682640,1720633845574,-134721.62981019,0.000335,2]
[331682641,1720633845682,-17363.1,0.000335,2]
[331682642,1720633845750,-551.62660578,0.00032876,7]
[331682643,1720633845760,-881.10235895,0.000335,2]
[331682681,1720634832123,-196.961036,0.00021096,2]
[331682682,1720634832146,-300.0,0.000255,2]
[331682683,1720634832167,-300.0,0.000255,2]
[331682684,1720634832188,-50725.97490292,0.00025501,2]
[331682687,1720634958716,518.07029447,0.00025501,30]
[331682688,1720634973481,-2360.76038586,0.00023453,2]
[331682689,1720634973502,-308.167392,0.00024771,2]
[331682690,1720634973522,-154.76012181,0.00025501,2]
[331682691,1720634973547,-763.93203298,0.00025501,2]
[331682692,1720634973568,-1416.03752461,0.00025501,2]
[331682693,1720634973588,-30000.0,0.00025501,2]
[331682694,1720634973610,-24890.0,0.00025505,2]
[331682695,1720634973631,-882.07441351,0.00027095,2]
[331682696,1720634973652,-778.68918365,0.00027184,2]
[331682697,1720634973673,-196.961036,0.00027195,2]
[331682698,1720634973693,-268.65851187,0.00028,2]
[331682699,1720634973714,-882.07441351,0.00028639,2]
[331682700,1720634973735,-453.22022894,0.00029,2]
[331682701,1720634973754,-162.355941,0.0002946,2]
[331682702,1720634973776,-14618.44003635,0.00029661,2]
[331682703,1720634973796,-191.04644475,0.00029761,2]
[331682704,1720634973816,-348.36389326,0.00029793,2]
[331682705,1720634973836,-4469.29717421,0.00029803,2]
[331682835,1720635033312,-284.38118333,0.00025501,2]
[331682837,1720635033323,-1038.2888596,0.00025501,2]
[331682839,1720635033337,-961.7111404,0.00025501,2]
[331682841,1720635033348,-205.64070452,0.00029861,2]
[331682843,1720635033358,-270.31483457,0.0002987,2]
[331682845,1720635033368,-175.41119278,0.00029904,2]
[331682847,1720635033378,-155.43553926,0.00029999,2]
[331682849,1720635033388,-79.13213297,0.00029999,2]
[331682851,1720635033400,-1026.73530797,0.00029999,2]
[331682853,1720635033410,-170.47875529,0.0003,4]
[331682855,1720635033419,-154.54409492,0.0003,4]
[331682857,1720635033428,-209.2624115,0.00030229,4]
[331682859,1720635033439,-151.0,0.00031013,4]
[331682861,1720635033450,-151.0,0.00031945,4]
[331682863,1720635033460,-1406.0,0.00032095,2]
[331682865,1720635033470,-150.0,0.00032113,2]
[331682867,1720635033479,-1559.86063891,0.000326,60]
[331682869,1720635033488,-2000.0,0.00032666,2]
[331682871,1720635033497,-414.0,0.00032766,2]
[331682873,1720635033506,-21131.3715096,0.00032766,4]
[331682984,1720635038476,-39972.6274674,0.00032766,4]
[331682985,1720635038487,-11223.42788594,0.00032776,5]
[331682986,1720635038497,-2007.36,0.00032856,3]
[331682987,1720635038507,-2832.0,0.00032856,3]
[331682988,1720635038518,-2360.0,0.00032856,3]
[331682989,1720635038528,-1966.67,0.00032856,3]
[331682990,1720635038538,-178.0437649,0.00032865,2]
[331682991,1720635038548,-265.37751026,0.00032865,2]
[331682992,1720635038558,-203.49205999,0.00032865,2]
[331682993,1720635038569,-460.28718364,0.00032865,5]
[331682994,1720635038579,-183311.996931,0.00032866,4]
[331682995,1720635038589,-518.67564556,0.00032876,7]
[331682996,1720635038599,-500.0,0.00032876,7]
[331682997,1720635038609,-251.40571538,0.00032876,7]
[331682998,1720635038619,-500.0,0.00032876,7]
[331682999,1720635038629,-500.0,0.00032876,7]
[331683000,1720635038639,-500.0,0.00032876,7]
[331683001,1720635038649,-500.0,0.00032876,7]
[331683002,1720635038659,-500.0,0.00032876,7]
[331683003,1720635038669,-500.0,0.00032876,7]
[331683004,1720635038679,-500.0,0.00032876,7]
[331683005,1720635038688,-500.0,0.00032876,7]
[331683006,1720635038698,-508.15813503,0.00032876,7]
[331683007,1720635038708,-510.76347615,0.00032876,7]
[331683008,1720635038718,-508.03266137,0.00032876,7]
[331683009,1720635038728,-503.56758103,0.00032876,7]
[331683010,1720635038738,-500.0,0.00032876,7]
[331683011,1720635038877,-500.0,0.00032876,7]
[331683012,1720635038887,-500.0,0.00032876,7]
[331683013,1720635038897,-511.60434271,0.00032876,7]
[331683014,1720635038906,-500.0,0.00032876,7]
[331683015,1720635038916,-500.0,0.00032876,7]
[331683016,1720635038926,-500.0,0.00032876,7]
[331683017,1720635038936,-473.38967444,0.00032876,7]
[331683018,1720635038946,-500.0,0.00032876,7]
[331683019,1720635038956,-500.0,0.00032876,7]
[331683020,1720635038966,-505.06475904,0.00032876,7]
[331683021,1720635038976,-601.07,0.00032876,7]
[331683022,1720635038987,-503.76980122,0.00032876,7]
[331683023,1720635038997,-500.0,0.00032876,7]
[331683024,1720635039006,-500.0,0.00032876,7]
[331683025,1720635039016,-500.0,0.00032876,7]
[331683026,1720635039026,-167.93072644,0.00032876,7]
[331683027,1720635039035,-500.0,0.00032876,7]